[Event "*** Titled Tuesday Blitz"]
[Site "Chess.com"]
[Date "2020.02.04"]
[Round "9"]
[White "DonPreuss"]
[Black "DamianoLew95"]
[Result "0-1"]
[WhiteElo "2205"]
[BlackElo "2589"]
[TimeControl "180+2"]
[EndTime "11:12:14 PST"]
[Termination "DamianoLew95 won by resignation"]

1. d4 {[%clk 0:03:01.9]} 1... d5 {[%clk 0:02:51.6]} 2. e4 {[%clk 0:03:02.8]}
2... dxe4 {[%clk 0:02:47.7]} 3. Nc3 {[%clk 0:03:04.3]} 3... Nf6 {[%clk
0:02:47.8]} 4. f3 {[%clk 0:03:05.6]} 4... exf3 {[%clk 0:02:48]} 5. Nxf3 {[%clk
0:03:06.5]} 5... e6 {[%clk 0:02:49.5]} 6. Bd3 {[%clk 0:03:03.5]} 6... c5 {[%clk
0:02:49.9]} 7. dxc5 {[%clk 0:03:02.8]} 7... Bxc5 {[%clk 0:02:49.3]} 8. Bg5
{[%clk 0:03:04.4]} 8... h6 {[%clk 0:02:46.8]} 9. Bh4 {[%clk 0:03:03.6]} 9... Nc6
{[%clk 0:02:44.7]} 10. Qe2 {[%clk 0:02:58.9]} 10... Nd4 {[%clk 0:02:31.9]} 11.
Nxd4 {[%clk 0:02:59.1]} 11... Qxd4 {[%clk 0:02:33.8]} 12. Bxf6 {[%clk
0:02:29.9]} 12... gxf6 {[%clk 0:02:18.9]} 13. Bb5+ {[%clk 0:01:48.5]} 13... Ke7
{[%clk 0:02:13]} 14. Rd1 {[%clk 0:01:40.1]} 14... Qe3 {[%clk 0:02:11.9]} 15. Rd3
{[%clk 0:01:12.9]} 15... Qxe2+ {[%clk 0:02:10.8]} 16. Kxe2 {[%clk 0:01:14.8]}
16... a6 {[%clk 0:02:10.9]} 17. Ba4 {[%clk 0:01:13]} 17... b5 {[%clk 0:02:11.5]}
18. Bb3 {[%clk 0:01:13.9]} 18... Bb7 {[%clk 0:02:12.1]} 19. Rhd1 {[%clk
0:01:07.4]} 19... Rad8 {[%clk 0:02:11.2]} 20. g3 {[%clk 0:00:43.9]} 20... Rxd3
{[%clk 0:02:08.1]} 21. cxd3 {[%clk 0:00:45.1]} 21... Bd4 {[%clk 0:02:06.3]} 22.
Rf1 {[%clk 0:00:40.9]} 22... f5 {[%clk 0:02:06.6]} 23. a4 {[%clk 0:00:40.6]}
23... b4 {[%clk 0:02:02.3]} 24. Nd1 {[%clk 0:00:41.8]} 24... a5 {[%clk
0:02:00.3]} 25. Ne3 {[%clk 0:00:41.1]} 25... Bxe3 {[%clk 0:01:39.3]} 26. Kxe3
{[%clk 0:00:41.8]} 26... Rc8 {[%clk 0:01:39.3]} 27. Bc4 {[%clk 0:00:40.1]} 27...
Bc6 {[%clk 0:01:11.3]} 28. b3 {[%clk 0:00:40.1]} 28... Bd7 {[%clk 0:01:12.2]}
29. Rf4 {[%clk 0:00:38.3]} 29... e5 {[%clk 0:01:02.4]} 30. Rh4 {[%clk
0:00:38.8]} 30... Rh8 {[%clk 0:01:00]} 31. d4 {[%clk 0:00:38.9]} 31... f6 {[%clk
0:00:56.8]} 32. h3 {[%clk 0:00:29.2]} 32... Kd6 {[%clk 0:00:54.6]} 33. g4 {[%clk
0:00:27.8]} 33... f4+ {[%clk 0:00:52.2]} 34. Ke4 {[%clk 0:00:29.2]} 34... Be6
{[%clk 0:00:41.4]} 35. d5 {[%clk 0:00:26.4]} 35... Bd7 {[%clk 0:00:38.5]} 36.
Rh5 {[%clk 0:00:27]} 36... Be8 {[%clk 0:00:38.1]} 37. Rh4 {[%clk 0:00:27.7]}
37... h5 {[%clk 0:00:33.5]} 38. gxh5 {[%clk 0:00:28.2]} 38... Bxh5 {[%clk
0:00:19.5]} 39. Kf5 {[%clk 0:00:29.1]} 39... Bg6+ {[%clk 0:00:19.5]} 40. Kg4
{[%clk 0:00:30.3]} 40... Bf5+ {[%clk 0:00:20.3]} 41. Kxf5 {[%clk 0:00:24.7]}
41... Rxh4 {[%clk 0:00:21.1]} 0-1

[Event "*** Titled Tuesday Blitz"]
[Site "Chess.com"]
[Date "2020.02.04"]
[Round "9"]
[White "Rodchenkov_Vitalij"]
[Black "victormago"]
[Result "1-0"]
[WhiteElo "2606"]
[BlackElo "2425"]
[TimeControl "180+2"]
[EndTime "11:12:26 PST"]
[Termination "Rodchenkov_Vitalij won on time"]

1. Nf3 {[%clk 0:03:01.9]} 1... Nf6 {[%clk 0:03:00.2]} 2. c4 {[%clk 0:03:01.7]}
2... c5 {[%clk 0:02:56.6]} 3. g3 {[%clk 0:03:00.6]} 3... b6 {[%clk 0:02:57.5]}
4. Bg2 {[%clk 0:03:01.3]} 4... Bb7 {[%clk 0:02:59.1]} 5. O-O {[%clk 0:03:03]}
5... e6 {[%clk 0:03:00.5]} 6. b3 {[%clk 0:03:04.4]} 6... Be7 {[%clk 0:03:01.1]}
7. Bb2 {[%clk 0:03:06]} 7... d6 {[%clk 0:03:02.1]} 8. e3 {[%clk 0:03:07.5]} 8...
Nbd7 {[%clk 0:03:02.8]} 9. Qe2 {[%clk 0:03:08.6]} 9... O-O {[%clk 0:03:02.4]}
10. Nc3 {[%clk 0:03:03.5]} 10... a6 {[%clk 0:03:02.2]} 11. Rac1 {[%clk
0:02:58.5]} 11... Re8 {[%clk 0:03:00]} 12. Ne1 {[%clk 0:02:56.1]} 12... Qc7
{[%clk 0:02:56.2]} 13. f4 {[%clk 0:02:55.6]} 13... Bxg2 {[%clk 0:02:51.4]} 14.
Qxg2 {[%clk 0:02:54.6]} 14... Rac8 {[%clk 0:02:41.5]} 15. g4 {[%clk 0:02:54.1]}
15... g6 {[%clk 0:02:38.8]} 16. g5 {[%clk 0:02:45.1]} 16... Nh5 {[%clk
0:02:39.1]} 17. Nd3 {[%clk 0:02:38.7]} 17... Bf8 {[%clk 0:02:37.7]} 18. Nf2
{[%clk 0:02:38.7]} 18... Bg7 {[%clk 0:02:38.7]} 19. Ng4 {[%clk 0:02:39.1]} 19...
Qc6 {[%clk 0:02:37.4]} 20. Rf3 {[%clk 0:02:34.2]} 20... b5 {[%clk 0:02:30.3]}
21. d3 {[%clk 0:02:10.8]} 21... b4 {[%clk 0:01:51.1]} 22. Ne4 {[%clk 0:02:10.9]}
22... d5 {[%clk 0:01:37.6]} 23. Nef6+ {[%clk 0:02:10.6]} 23... Ndxf6 {[%clk
0:01:34.5]} 24. gxf6 {[%clk 0:02:04.9]} 24... Bf8 {[%clk 0:01:34.9]} 25. Ne5
{[%clk 0:02:04.4]} 25... Qc7 {[%clk 0:01:26.6]} 26. Rh3 {[%clk 0:02:03.6]} 26...
Kh8 {[%clk 0:01:27.9]} 27. cxd5 {[%clk 0:01:54.1]} 27... Rcd8 {[%clk 0:01:03.9]}
28. Rxh5 {[%clk 0:01:43.7]} 28... gxh5 {[%clk 0:01:04.1]} 29. Qg5 {[%clk
0:01:43.9]} 29... Rxd5 {[%clk 0:00:56.5]} 30. Rc2 {[%clk 0:01:43.8]} 30... h6
{[%clk 0:00:42.1]} 31. Qxh5 {[%clk 0:01:43.9]} 31... Rxe5 {[%clk 0:00:39.8]} 32.
Bxe5 {[%clk 0:01:44]} 32... Qd7 {[%clk 0:00:36.4]} 33. d4 {[%clk 0:01:37.9]}
33... cxd4 {[%clk 0:00:35.9]} 34. exd4 {[%clk 0:01:39]} 34... Rc8 {[%clk
0:00:34.4]} 35. Rc4 {[%clk 0:01:15.7]} 35... Rxc4 {[%clk 0:00:30.2]} 36. bxc4
{[%clk 0:01:16.6]} 36... Kg8 {[%clk 0:00:31.4]} 37. Qg4+ {[%clk 0:01:14.7]}
37... Kh7 {[%clk 0:00:32]} 38. Qf3 {[%clk 0:01:14.6]} 38... Bd6 {[%clk
0:00:17.2]} 39. Qe4+ {[%clk 0:01:10.9]} 39... Kg8 {[%clk 0:00:17.6]} 40. Qa8+
{[%clk 0:01:09.7]} 40... Kh7 {[%clk 0:00:18.4]} 41. Qe4+ {[%clk 0:01:09.9]}
41... Kh8 {[%clk 0:00:17.4]} 42. c5 {[%clk 0:01:11.6]} 42... Bxe5 {[%clk
0:00:15.4]} 43. fxe5 {[%clk 0:01:12.6]} 43... Qa4 {[%clk 0:00:13.8]} 44. Qe2
{[%clk 0:01:11.6]} 44... b3 {[%clk 0:00:11.3]} 45. Qd2 {[%clk 0:01:09.6]} 45...
Kg8 {[%clk 0:00:05.7]} 46. axb3 {[%clk 0:01:08.1]} 46... Qxb3 {[%clk 0:00:04.3]}
47. Kg2 {[%clk 0:01:09.4]} 1-0

[Event "*** Titled Tuesday Blitz"]
[Site "Chess.com"]
[Date "2020.02.04"]
[Round "9"]
[White "Sjakkerntobi"]
[Black "BabyBoss31"]
[Result "1/2-1/2"]
[WhiteElo "2271"]
[BlackElo "2197"]
[TimeControl "180+2"]
[EndTime "11:12:27 PST"]
[Termination "Game drawn by agreement"]

1. e4 {[%clk 0:03:01.9]} 1... e6 {[%clk 0:03:01.2]} 2. d4 {[%clk 0:02:57.1]}
2... d5 {[%clk 0:03:03.1]} 3. Nd2 {[%clk 0:02:57.1]} 3... Nf6 {[%clk 0:03:03.8]}
4. e5 {[%clk 0:02:55.4]} 4... Nfd7 {[%clk 0:03:04.4]} 5. Bd3 {[%clk 0:02:55.1]}
5... c5 {[%clk 0:03:05.9]} 6. c3 {[%clk 0:02:56.3]} 6... Nc6 {[%clk 0:03:07.4]}
7. Ne2 {[%clk 0:02:56.6]} 7... cxd4 {[%clk 0:03:08.9]} 8. cxd4 {[%clk
0:02:58.5]} 8... f6 {[%clk 0:03:10.8]} 9. exf6 {[%clk 0:02:51.6]} 9... Nxf6
{[%clk 0:03:12.7]} 10. Nf3 {[%clk 0:02:53.2]} 10... Bd6 {[%clk 0:03:13.8]} 11.
Bf4 {[%clk 0:02:53.9]} 11... Bxf4 {[%clk 0:02:28.3]} 12. Nxf4 {[%clk 0:02:55.8]}
12... O-O {[%clk 0:02:29.8]} 13. O-O {[%clk 0:02:55.6]} 13... Ne4 {[%clk
0:02:28.1]} 14. Qc1 {[%clk 0:02:46.9]} 14... Ng5 {[%clk 0:02:22.9]} 15. Nxg5
{[%clk 0:02:44.6]} 15... Qxg5 {[%clk 0:02:24.8]} 16. Ne2 {[%clk 0:02:41.7]}
16... Qf6 {[%clk 0:02:17.3]} 17. Qe3 {[%clk 0:02:40.4]} 17... Bd7 {[%clk
0:02:16.8]} 18. a3 {[%clk 0:02:40.4]} 18... Rac8 {[%clk 0:02:11.6]} 19. Rae1
{[%clk 0:02:23.2]} 19... Rfe8 {[%clk 0:02:02]} 20. f4 {[%clk 0:02:12.6]} 20...
Na5 {[%clk 0:01:41.7]} 21. Qe5 {[%clk 0:01:48.7]} 21... Qf7 {[%clk 0:01:23.3]}
22. Nc3 {[%clk 0:01:35.9]} 22... a6 {[%clk 0:01:13.8]} 23. f5 {[%clk 0:01:32.2]}
23... exf5 {[%clk 0:01:07.8]} 24. Qxd5 {[%clk 0:01:31.1]} 24... Rxe1 {[%clk
0:01:01.3]} 25. Rxe1 {[%clk 0:01:22.5]} 25... Qxd5 {[%clk 0:00:56.9]} 26. Nxd5
{[%clk 0:01:24.4]} 26... Re8 {[%clk 0:00:53.2]} 27. Rxe8+ {[%clk 0:01:23.3]}
27... Bxe8 {[%clk 0:00:55.1]} 28. b4 {[%clk 0:01:00.1]} 28... Nc6 {[%clk
0:00:53.3]} 29. Bxf5 {[%clk 0:00:59.4]} 29... Nxd4 {[%clk 0:00:54.1]} 30. Bc8
{[%clk 0:01:00.4]} 30... Bc6 {[%clk 0:00:55]} 31. Ne7+ {[%clk 0:01:00.1]} 31...
Kf7 {[%clk 0:00:54.4]} 32. Nxc6 {[%clk 0:01:02]} 32... bxc6 {[%clk 0:00:56.3]}
33. Bxa6 {[%clk 0:01:01.3]} 33... Nc2 {[%clk 0:00:57.5]} 34. Bb7 {[%clk
0:01:01.4]} 34... Nxa3 {[%clk 0:00:55.7]} 35. Bxc6 {[%clk 0:01:02.7]} 35... Ke6
{[%clk 0:00:57.3]} 36. Kf2 {[%clk 0:01:03.2]} 36... Kd6 {[%clk 0:00:58.6]} 37.
b5 {[%clk 0:01:04.4]} 37... Nc2 {[%clk 0:00:57.6]} 38. Kf3 {[%clk 0:01:03.5]}
38... Nd4+ {[%clk 0:00:58.6]} 39. Ke4 {[%clk 0:01:04.3]} 39... Nxc6 {[%clk
0:00:52]} 40. bxc6 {[%clk 0:01:05.6]} 40... Kxc6 {[%clk 0:00:53.9]} 41. Ke5
{[%clk 0:01:07.5]} 41... Kd7 {[%clk 0:00:55.4]} 42. Kd5 {[%clk 0:01:07.9]} 42...
Ke7 {[%clk 0:00:56.5]} 43. Ke5 {[%clk 0:01:08.2]} 43... Kf7 {[%clk 0:00:57.6]}
44. g4 {[%clk 0:01:08.5]} 44... Kg6 {[%clk 0:00:57.9]} 45. h4 {[%clk 0:01:09.3]}
45... h6 {[%clk 0:00:57.2]} 46. Ke6 {[%clk 0:01:07.7]} 46... Kh7 {[%clk
0:00:58]} 47. Kf7 {[%clk 0:01:08.4]} 47... Kh8 {[%clk 0:00:56.5]} 48. Kg6 {[%clk
0:00:58.1]} 48... Kg8 {[%clk 0:00:56]} 49. Kf5 {[%clk 0:00:59.5]} 49... Kh8
{[%clk 0:00:56.7]} 50. Ke6 {[%clk 0:01:00.7]} 50... Kg8 {[%clk 0:00:57.6]} 51.
Ke7 {[%clk 0:01:01.4]} 51... Kh8 {[%clk 0:00:58.4]} 52. Kf8 {[%clk 0:01:01.8]}
52... Kh7 {[%clk 0:00:58.7]} 1/2-1/2

[Event "*** Titled Tuesday Blitz"]
[Site "Chess.com"]
[Date "2020.02.04"]
[Round "9"]
[White "SabinaFoisor"]
[Black "BocharovD"]
[Result "0-1"]
[WhiteElo "2426"]
[BlackElo "2746"]
[TimeControl "180+2"]
[EndTime "11:12:32 PST"]
[Termination "BocharovD won by checkmate"]

1. d4 {[%clk 0:03:00.2]} 1... Nf6 {[%clk 0:02:59.4]} 2. c4 {[%clk 0:03:00]} 2...
e6 {[%clk 0:03:00.8]} 3. Nf3 {[%clk 0:03:00.1]} 3... d5 {[%clk 0:03:00]} 4. Bg5
{[%clk 0:02:59.8]} 4... dxc4 {[%clk 0:02:59.2]} 5. a4 {[%clk 0:03:00.1]} 5... c6
{[%clk 0:02:57.1]} 6. Nc3 {[%clk 0:02:57.4]} 6... b5 {[%clk 0:02:56.5]} 7. axb5
{[%clk 0:02:50.4]} 7... cxb5 {[%clk 0:02:57.5]} 8. Nxb5 {[%clk 0:02:49.2]} 8...
Qb6 {[%clk 0:02:58.4]} 9. Nc3 {[%clk 0:01:51.2]} 9... Qxb2 {[%clk 0:02:58.4]}
10. Bd2 {[%clk 0:01:51.5]} 10... Nd5 {[%clk 0:02:58.5]} 11. Nxd5 {[%clk
0:01:18.5]} 11... exd5 {[%clk 0:02:56.6]} 12. Rb1 {[%clk 0:01:17.9]} 12... Qa3
{[%clk 0:02:43.8]} 13. e4 {[%clk 0:01:14.7]} 13... c3 {[%clk 0:02:38]} 14. Bc1
{[%clk 0:01:08.4]} 14... Qa2 {[%clk 0:02:38.7]} 15. Bd3 {[%clk 0:01:07]} 15...
Ba6 {[%clk 0:02:31.1]} 16. O-O {[%clk 0:00:49.9]} 16... Bd6 {[%clk 0:02:25.7]}
17. e5 {[%clk 0:00:43.6]} 17... Be7 {[%clk 0:02:22.5]} 18. Bg5 {[%clk
0:00:36.3]} 18... Nc6 {[%clk 0:02:11.8]} 19. Bxe7 {[%clk 0:00:32.7]} 19... c2
{[%clk 0:01:23.7]} 20. Bxc2 {[%clk 0:00:32.9]} 20... Bxf1 {[%clk 0:01:22.7]} 21.
Bc5 {[%clk 0:00:24.9]} 21... Bc4 {[%clk 0:01:18]} 22. Ba4 {[%clk 0:00:24.8]}
22... Rc8 {[%clk 0:01:13.5]} 23. Bxc6+ {[%clk 0:00:20.9]} 23... Rxc6 {[%clk
0:01:15]} 24. Rb8+ {[%clk 0:00:21.7]} 24... Kd7 {[%clk 0:01:15.6]} 25. Rxh8
{[%clk 0:00:23.2]} 25... Ra6 {[%clk 0:01:14.4]} 26. h3 {[%clk 0:00:23]} 26...
Be2 {[%clk 0:01:15.1]} 27. Qc1 {[%clk 0:00:20.4]} 27... Bxf3 {[%clk 0:01:01.5]}
28. gxf3 {[%clk 0:00:22.3]} 28... Qe2 {[%clk 0:00:58.8]} 29. Qf4 {[%clk
0:00:20]} 29... Rg6+ {[%clk 0:00:57.4]} 30. Qg4+ {[%clk 0:00:11.7]} 30... Rxg4+
{[%clk 0:00:57.9]} 31. fxg4 {[%clk 0:00:12.4]} 31... a5 {[%clk 0:00:52.4]} 32.
Rxh7 {[%clk 0:00:12.1]} 32... a4 {[%clk 0:00:53.6]} 33. Rxg7 {[%clk 0:00:12.6]}
33... Qf3 {[%clk 0:00:54.8]} 34. Rg8 {[%clk 0:00:11.7]} 34... Qxh3 {[%clk
0:00:53.1]} 35. g5 {[%clk 0:00:09.9]} 35... a3 {[%clk 0:00:51.9]} 36. Ra8 {[%clk
0:00:08]} 36... Qg4+ {[%clk 0:00:53.3]} 37. Kh2 {[%clk 0:00:08.6]} 37... Qe4
{[%clk 0:00:54.1]} 38. Rxa3 {[%clk 0:00:08.4]} 38... Qf4+ {[%clk 0:00:55.3]} 39.
Kg2 {[%clk 0:00:08.5]} 39... Qxg5+ {[%clk 0:00:55.8]} 40. Rg3 {[%clk 0:00:09.7]}
40... Qf4 {[%clk 0:00:57.4]} 41. f3 {[%clk 0:00:09.2]} 41... Qd2+ {[%clk
0:00:56.3]} 42. Kh3 {[%clk 0:00:10.3]} 42... Qe2 {[%clk 0:00:57.7]} 43. Kg4
{[%clk 0:00:07.4]} 43... Ke6 {[%clk 0:00:58.9]} 44. Kh3 {[%clk 0:00:07.5]} 44...
Kf5 {[%clk 0:00:59.2]} 45. Bd6 {[%clk 0:00:02.2]} 45... Qd1 {[%clk 0:01:00.2]}
46. Bc5 {[%clk 0:00:02.9]} 46... Qh1# {[%clk 0:01:00.7]} 0-1

[Event "*** Titled Tuesday Blitz"]
[Site "Chess.com"]
[Date "2020.02.04"]
[Round "9"]
[White "Lubov_Gordyk"]
[Black "Hanging_pointer"]
[Result "1-0"]
[WhiteElo "2629"]
[BlackElo "2422"]
[TimeControl "180+2"]
[EndTime "11:12:32 PST"]
[Termination "Lubov_Gordyk won by resignation"]

1. e4 {[%clk 0:03:01.9]} 1... c6 {[%clk 0:02:51.2]} 2. d3 {[%clk 0:03:02.5]}
2... d5 {[%clk 0:02:53.1]} 3. Nf3 {[%clk 0:03:03.5]} 3... e6 {[%clk 0:02:54.5]}
4. c3 {[%clk 0:02:58.1]} 4... dxe4 {[%clk 0:02:54.2]} 5. dxe4 {[%clk 0:02:58.9]}
5... Qxd1+ {[%clk 0:02:56.1]} 6. Kxd1 {[%clk 0:03:00.3]} 6... Nf6 {[%clk
0:02:57]} 7. Nfd2 {[%clk 0:02:58.2]} 7... Be7 {[%clk 0:02:55]} 8. f3 {[%clk
0:02:59.1]} 8... c5 {[%clk 0:02:56.2]} 9. a4 {[%clk 0:02:58.9]} 9... b6 {[%clk
0:02:56.9]} 10. Nc4 {[%clk 0:02:59.1]} 10... Bb7 {[%clk 0:02:54]} 11. Kc2 {[%clk
0:02:57.9]} 11... Nc6 {[%clk 0:02:53.5]} 12. Be3 {[%clk 0:02:58.3]} 12... O-O-O
{[%clk 0:02:52.7]} 13. Nbd2 {[%clk 0:02:58.6]} 13... h6 {[%clk 0:02:44]} 14. a5
{[%clk 0:02:59.6]} 14... b5 {[%clk 0:02:40.7]} 15. a6 {[%clk 0:03:00.3]} 15...
Ba8 {[%clk 0:02:37.5]} 16. Na5 {[%clk 0:03:01.2]} 16... c4 {[%clk 0:01:42.8]}
17. Nxc6 {[%clk 0:03:00.7]} 17... Bxc6 {[%clk 0:01:44.7]} 18. Bxa7 {[%clk
0:03:00.8]} 18... Kc7 {[%clk 0:01:40.1]} 19. Be3 {[%clk 0:02:52.8]} 19... Nd7
{[%clk 0:01:24.7]} 20. b3 {[%clk 0:02:53.9]} 20... Bc5 {[%clk 0:01:23.4]} 21.
Bf4+ {[%clk 0:02:38.9]} 21... e5 {[%clk 0:01:22.4]} 22. Bg3 {[%clk 0:02:39.4]}
22... f6 {[%clk 0:01:16.3]} 23. bxc4 {[%clk 0:02:37.9]} 23... b4 {[%clk
0:01:06.9]} 24. Nb3 {[%clk 0:02:24.7]} 24... bxc3 {[%clk 0:01:03.5]} 25. Nxc5
{[%clk 0:02:16.4]} 25... Nxc5 {[%clk 0:01:05.4]} 26. Kxc3 {[%clk 0:02:17.1]}
26... Ne6 {[%clk 0:00:48.9]} 27. Bd3 {[%clk 0:02:08.5]} 27... Rd7 {[%clk
0:00:44.6]} 28. Rhb1 {[%clk 0:02:05.6]} 28... Ra8 {[%clk 0:00:41.5]} 29. Bf2
{[%clk 0:02:03.9]} 29... g5 {[%clk 0:00:35.7]} 30. c5 {[%clk 0:01:45.4]} 30...
h5 {[%clk 0:00:32.2]} 31. Bc4 {[%clk 0:01:43.5]} 31... Nf4 {[%clk 0:00:30.2]}
32. g3 {[%clk 0:01:40.3]} 32... Ng6 {[%clk 0:00:25.6]} 33. Rb6 {[%clk
0:01:30.6]} 33... Ra7 {[%clk 0:00:19.4]} 34. Rab1 {[%clk 0:01:07.4]} 34... Ne7
{[%clk 0:00:17.5]} 35. Rb8 {[%clk 0:00:55.7]} 35... g4 {[%clk 0:00:17.6]} 36.
Be6 {[%clk 0:00:38.7]} 36... Rxa6 {[%clk 0:00:14.3]} 37. Bxd7 {[%clk 0:00:38.3]}
37... Kxd7 {[%clk 0:00:16.2]} 38. fxg4 {[%clk 0:00:36.8]} 38... hxg4 {[%clk
0:00:18.1]} 39. R8b4 {[%clk 0:00:37]} 39... Ra3+ {[%clk 0:00:16.8]} 40. R1b3
{[%clk 0:00:37.4]} 40... Ra2 {[%clk 0:00:15.2]} 41. Rb2 {[%clk 0:00:38.5]} 41...
Ra3+ {[%clk 0:00:13]} 42. Kd2 {[%clk 0:00:39.6]} 42... Ke6 {[%clk 0:00:10.9]}
43. Ke2 {[%clk 0:00:39.1]} 43... Rc3 {[%clk 0:00:11.4]} 44. Rd2 {[%clk
0:00:37.7]} 44... f5 {[%clk 0:00:12.3]} 45. Rd6+ {[%clk 0:00:37.5]} 1-0

[Event "*** Titled Tuesday Blitz"]
[Site "Chess.com"]
[Date "2020.02.04"]
[Round "9"]
[White "HouseOfDurin"]
[Black "secretsuperstar7"]
[Result "1-0"]
[WhiteElo "2091"]
[BlackElo "2226"]
[TimeControl "180+2"]
[EndTime "11:12:38 PST"]
[Termination "HouseOfDurin won by resignation"]

1. d4 {[%clk 0:03:01.9]} 1... Nf6 {[%clk 0:02:58.9]} 2. Bg5 {[%clk 0:03:03.1]}
2... d5 {[%clk 0:02:49.1]} 3. Bxf6 {[%clk 0:03:03.8]} 3... exf6 {[%clk
0:02:48.6]} 4. e3 {[%clk 0:03:05.4]} 4... c6 {[%clk 0:02:48.8]} 5. c4 {[%clk
0:03:06.5]} 5... Nd7 {[%clk 0:02:24.9]} 6. cxd5 {[%clk 0:03:06.3]} 6... cxd5
{[%clk 0:02:25.6]} 7. Nc3 {[%clk 0:03:07.2]} 7... Qa5 {[%clk 0:02:23.5]} 8. Ne2
{[%clk 0:03:02.3]} 8... Bd6 {[%clk 0:02:16.9]} 9. g3 {[%clk 0:03:03]} 9... O-O
{[%clk 0:02:16.1]} 10. Bg2 {[%clk 0:03:04.3]} 10... Nb6 {[%clk 0:02:15.8]} 11.
a3 {[%clk 0:02:55]} 11... Be6 {[%clk 0:02:03.5]} 12. b4 {[%clk 0:02:42.2]} 12...
Qa6 {[%clk 0:02:02.8]} 13. Qb3 {[%clk 0:02:30.8]} 13... Qc4 {[%clk 0:01:58.5]}
14. Qxc4 {[%clk 0:02:15.1]} 14... dxc4 {[%clk 0:01:58.9]} 15. Bxb7 {[%clk
0:02:15]} 15... Rab8 {[%clk 0:01:58.3]} 16. Bg2 {[%clk 0:01:51.2]} 16... Bd7
{[%clk 0:01:56.9]} 17. O-O {[%clk 0:01:40.6]} 17... Na4 {[%clk 0:01:54.9]} 18.
Ne4 {[%clk 0:01:25.4]} 18... Be7 {[%clk 0:01:53.5]} 19. Rfc1 {[%clk 0:01:21.9]}
19... Bb5 {[%clk 0:01:49.9]} 20. Nc5 {[%clk 0:01:14.2]} 20... Bxc5 {[%clk
0:01:39.6]} 21. dxc5 {[%clk 0:01:16.1]} 21... Rbd8 {[%clk 0:01:36.8]} 22. Nd4
{[%clk 0:01:10]} 22... Bd7 {[%clk 0:01:33.8]} 23. Rxc4 {[%clk 0:01:02.4]} 23...
Be6 {[%clk 0:01:31.4]} 24. Rc2 {[%clk 0:00:55.5]} 24... a5 {[%clk 0:01:29.6]}
25. Bc6 {[%clk 0:00:48.9]} 25... Bd7 {[%clk 0:01:26.6]} 26. Rac1 {[%clk
0:00:33.4]} 26... Bxc6 {[%clk 0:01:26.2]} 27. Nxc6 {[%clk 0:00:34.6]} 27... Rd3
{[%clk 0:01:27]} 28. Nxa5 {[%clk 0:00:31.3]} 28... Rxa3 {[%clk 0:01:28.9]} 29.
Nb7 {[%clk 0:00:16.7]} 29... g6 {[%clk 0:01:28.2]} 30. c6 {[%clk 0:00:14.2]}
30... Nb6 {[%clk 0:01:27.4]} 31. c7 {[%clk 0:00:12.3]} 31... Nc8 {[%clk
0:01:28.5]} 32. b5 {[%clk 0:00:11.7]} 32... Re8 {[%clk 0:01:25.9]} 33. Rd1
{[%clk 0:00:10.8]} 33... Rb3 {[%clk 0:01:24.7]} 34. Rd8 {[%clk 0:00:11.1]} 34...
Kf8 {[%clk 0:01:25.9]} 35. Rc5 {[%clk 0:00:08.5]} 35... Ke7 {[%clk 0:01:24.9]}
36. Rxe8+ {[%clk 0:00:05.1]} 36... Kxe8 {[%clk 0:01:25]} 37. Kg2 {[%clk
0:00:03.8]} 37... Kd7 {[%clk 0:01:26]} 38. h4 {[%clk 0:00:04.8]} 38... Rb2
{[%clk 0:01:25.1]} 39. Kf3 {[%clk 0:00:05.7]} 39... Rb1 {[%clk 0:01:26.2]} 40.
h5 {[%clk 0:00:06.5]} 40... Rb4 {[%clk 0:01:26.2]} 41. hxg6 {[%clk 0:00:06.6]}
41... fxg6 {[%clk 0:01:26.5]} 42. g4 {[%clk 0:00:08.3]} 42... h6 {[%clk
0:01:25.4]} 43. Na5 {[%clk 0:00:06.7]} 43... Kd6 {[%clk 0:01:21.7]} 44. Rc6+
{[%clk 0:00:07.4]} 44... Kd7 {[%clk 0:01:22.5]} 45. Rxf6 {[%clk 0:00:07.5]}
45... Kxc7 {[%clk 0:01:22.6]} 46. Rxg6 {[%clk 0:00:06.9]} 46... Rxb5 {[%clk
0:01:23]} 47. Nc4 {[%clk 0:00:07]} 47... Ne7 {[%clk 0:01:22.3]} 48. Rxh6 {[%clk
0:00:05.9]} 48... Kd7 {[%clk 0:01:22.4]} 49. Rh7 {[%clk 0:00:06.6]} 49... Rc5
{[%clk 0:01:23.1]} 50. Nd2 {[%clk 0:00:06.7]} 50... Ke6 {[%clk 0:01:23.9]} 51.
Ne4 {[%clk 0:00:06.8]} 51... Re5 {[%clk 0:01:23.4]} 52. Rh6+ {[%clk 0:00:06.2]}
52... Kd7 {[%clk 0:01:22.3]} 53. Ng3 {[%clk 0:00:07]} 53... Nd5 {[%clk
0:01:22.7]} 54. Rh5 {[%clk 0:00:07.6]} 54... Re8 {[%clk 0:01:20.6]} 55. Rxd5+
{[%clk 0:00:08.1]} 1-0